Workbook

Sheet User Guide
B2: Rearing Herd Calculator
B3: Purpose – to calculate the margin per pig from weaning to grower ( typically up to 40k ).
B4: Targeted user – suitable for Breeder- Feeder, Nursery and Batch producers.
B6: Operation.
B7: Feed Costs and Feeding Plan - Complete the yellow boxes according to your feed budget, i.e. the number of days and the amount of feed they eat for each diet. Enter mortality per stage so it reflects the overall recorded mortality. Batch Data - Enter the number of pigs and their average weight in and average weight out for the batch. The number out is a calculated figure dependant on the mortality percentage that has been entered in the feeding plan above. Weaned Piglet Cost - This is either the purchase price of the weaned pig or the calculated cost of production for a weaned pig from the Breeding Herd calculator. Sale Value – The net sale value less any costs. Variable and Fixed Costs - Value depends on your enterprise. Nursery producers use the figures from the Profit and Loss account. Wean to Finish producers will have to allocate a percentage of the total costs to the rearing phase, i.e. vet and med costs may be higher but labour lower. Alternatively, you could just allocate cost as a percentage of the days on unit, i.e. 24 weeks could be split 9 weeks rearing and 15 weeks finishing, which gives a 38% and 62% allocation of the total costs. Breeder - Feeders have already allocated a percentage of breeding herd costs to the cost of a weaned piglet at entry. The remaining costs are allocated as above.

Sheet Rearing Herd Calculator
C2: Rearing Herd Calculator
C3: Purpose – to calculate the margin per pig, from weaning to grower ( typically up to 40kg ).
C4: Target user – suitable for Breeder- Feeder, Nursery and Batch producers.
C6: How to use the calculator
C7: The yellow boxes require your data
C8: The blue boxes are outcomes calculated from your data
C12: Average Weight IN (kg) | F12: 7 | J12: Average Weight OUT (kg) | N12: 40
C14: Number of pigs batch IN | F14: 500 | J14: Number of pigs batch OUT | N14: =Calculations!M12 -> 494.024958
C16: Total weight batch IN (kg) | F16: =F12*F14 -> 3500 | J16: Total weight batch OUT (kg) | N16: =N12*N14 -> 19760.99832
C20: Feed costs and feeding plan
H22: Feed allowance kg/pig
D23: Cost (£/t) | F23: Days | J23: kg/batch | L23: %Mortality
C25: Starter diet | D25: 500 | F25: 7 | H25: 3 | J25: =Calculations!H6 -> 1498.5 | L25: 0.1
C27: Link diet | D27: 300 | F27: 10 | H27: 8 | J27: =Calculations!H8 -> 3984.012 | L27: 0.3
C29: Rearer I | D29: 250 | F29: 15 | H29: 18 | J29: =Calculations!H10 -> 8919.206865 | L29: 0.5
C31: Rearer II | D31: 225 | F31: 31 | H31: 45 | J31: =Calculations!H12 -> 22231.12311 | L31: 0.3
C33: Overall | D33: =Calculations!C14 -> 250.4926596 | F33: =F25+F27+F29+F31 -> 63 | H33: =H25+H27+H29+H31 -> 74 | J33: =J25+J27+J29+J31 -> 36632.84198 | L33: =Calculations!J14 -> 1.195008396
C35: Cost of production (£/pig)
C37: Weaned piglet cost (£) | H37: 10
C39: Feed costs
C40: Starter diet | H40: =Calculations!O6 -> 1.5
C42: Link diet | H42: =Calculations!O8 -> 2.4
C44: Rearer I | H44: =Calculations!O10 -> 4.5
C46: Rearer II | H46: =Calculations!O12 -> 10.125
C48: Overall | H48: =Calculations!O14 -> 18.57448266
C50: Other costs (£/pig)
C52: Veterinary & Med | H52: 10
C54: Transport & Marketing | H54: 10
C56: Electricity & Gas | H56: 5
C58: Water | H58: 5
C60: Straw & bedding | H60: 20
C62: Other variable costs | H62: 10
C64: Labour (including family) | H64: 100
C66: Building depreciation | H66: 30
C68: Building repairs & maintenance | H68: 10
C70: Equipment depreciation | H70: 20
C72: Equipment repairs & maintenance | H72: 20
C74: Other fixed costs (£/pig) | H74: 50
C76: Total Costs (£/pig) | H76: =SUM(H52:H74)+H37+H48 -> 318.5744827
C80: Total days in rearing herd | L80: =F33 -> 63
C82: Average daily gain (g) | L82: =((N12-F12)/L80)*1000 -> 523.8095238
C84: Feed conversion ratio | L84: =Calculations!H14/('Rearing Herd Calculator'!N16-'Rearing Herd Calculator'!F16) -> 2.252803995
C86: Feed Costs
C87: Per batch (£) | L87: =Calculations!P14 -> 9176.258016
C89: Per pig (£) | L89: =Calculations!O14 -> 18.57448266
C91: Pence per kg live weight gain | L91: =(Calculations!P14/('Rearing Herd Calculator'!N16-'Rearing Herd Calculator'!F16))*100 -> 56.43108643
C93: Value of weaned piglet IN (£/pig) | L93: =H37 -> 10
C95: Value of batch IN (£) | L95: =L93*F14 -> 5000
C97: Value of pig OUT (£/pig) | L97: =H76 -> 318.5744827
C99: Value of batch OUT (£) | L99: =L97*N14 -> 157383.7454
C101: Sale value per pig (£) | L101: 300
C103: Sale value batch out (£) | L103: =L101*N14 -> 148207.4874
C105: Net margin per pig (£) | L105: =L101-L97 -> -18.57448266
C107: Net margin per batch OUT (£) | L107: =L103-L99 -> -9176.258016

Sheet Weight IN Dist (hidden)
B1: Orig beta | C1: Shifted beta | E1: How to use:
A2: Alpha | B2: =(((1-B4)/B7)-1/B4)*B4^2 ->  | E2: Adjust the values in the green boxes to change the distribution
A3: Beta | B3: =B2*((1/B4)-1) ->  | E3: If alpha is bigger than beta there will be a tail to the left
A4: Mean | B4: =(C4-C10)/(C11-C10) ->  | C4: =#REF! -> 
A5: Median | C5: =INDEX(B14:B114,MATCH(0.5,D14:D113,1)) -> 
A6: Mode | C6: =INDEX(B14:B114,MATCH(MAX(C14:C114),C14:C114,0)) -> 
A7: Variance | B7: =C7/(C11-C10)^2 ->  | C7: =C8^2 -> 
A8: St Dev | B8: =SQRT(B7) ->  | C8: =#REF! -> 
A10: LB | B10: 0 | C10: =#REF! -> 
A11: UB | B11: 1 | C11: =#REF! -> 
A13: zero to 1 | B13: pig equivalent | C13: beta interval prob | D13: beta cum
A14: 0 | B14: =A14*($C$11-$C$10)+$C$10 ->  | C14: =_xlfn.BETA.DIST(A14,$B$2,$B$3,1) ->  | D14: =_xlfn.BETA.DIST(A14,$B$2,$B$3,1) -> 
A15: =A14+0.01 -> 0.01 | B15: =A15*($C$11-$C$10)+$C$10 ->  | C15: =_xlfn.BETA.DIST(A15,$B$2,$B$3,1)-_xlfn.BETA.DIST(A14,$B$2,$B$3,1) ->  | D15: =_xlfn.BETA.DIST(A15,$B$2,$B$3,1) -> 
A16: =A15+0.01 -> 0.02
A17: 0.03
A18: 0.04
A19: 0.05
A20: 0.06
A21: 0.07
A22: 0.08
A23: 0.09
A24: 0.1
A25: 0.11
A26: 0.12
A27: 0.13
A28: 0.14
A29: 0.15
A30: 0.16
A31: 0.17
A32: 0.18
A33: 0.19
A34: 0.2
A35: 0.21
A36: 0.22
A37: 0.23
A38: 0.24
A39: 0.25
A40: 0.26
A41: 0.27
A42: 0.28
A43: 0.29
A44: 0.3
A45: 0.31
A46: 0.32
A47: 0.33
A48: 0.34
A49: 0.35
A50: 0.36
A51: 0.37
A52: 0.38
A53: 0.39
A54: 0.4
A55: 0.41
A56: 0.42
A57: 0.43
A58: 0.44
A59: 0.45
A60: 0.46
A61: 0.47
A62: 0.48
A63: 0.49
A64: 0.5
A65: 0.51
A66: 0.52
A67: 0.53
A68: 0.54
A69: 0.55
A70: 0.56
A71: 0.57
A72: 0.58
A73: 0.59
A74: 0.6
A75: 0.61
A76: 0.62
A77: 0.63
A78: 0.64
A79: 0.65 | B79: =A79*($C$11-$C$10)+$C$10 ->  | C79: =_xlfn.BETA.DIST(A79,$B$2,$B$3,1)-_xlfn.BETA.DIST(A78,$B$2,$B$3,1) ->  | D79: =_xlfn.BETA.DIST(A79,$B$2,$B$3,1) -> 
A80: =A79+0.01 -> 0.66
A81: 0.67
A82: 0.68
A83: 0.69
A84: 0.7
A85: 0.71
A86: 0.72
A87: 0.73
A88: 0.74
A89: 0.75
A90: 0.76
A91: 0.77
A92: 0.78
A93: 0.79
A94: 0.8
A95: 0.81
A96: 0.82
A97: 0.83
A98: 0.84
A99: 0.85
A100: 0.86
A101: 0.87
A102: 0.88
A103: 0.89
A104: 0.9
A105: 0.91
A106: 0.92
A107: 0.93
A108: 0.94
A109: 0.95
A110: 0.96
A111: 0.97
A112: 0.98
A113: 0.99
A114: 1 | C114: =1-SUM(C14:C113) ->  | D114: 1

Sheet Weight IN Grader (hidden)
A1: WT IN (kg) | B1: % pigs | C1: Number of pigs | D1: Total Wt IN (kg)
A2: ='Weight IN Dist'!B14 ->  | B2: =IFERROR(_xlfn.BETA.DIST(A2,'Weight IN Dist'!$B$2,'Weight IN Dist'!$B$3,1,'Weight IN Dist'!$C$10,'Weight IN Dist'!$C$11),0) -> 0 | C2: =IF(A2="","",B2*$G$2) ->  | D2: =IF(B2="",0,C2*A2) ->  | F2: Batch Size | G2: ='Rearing Herd Calculator'!F14 -> 500
A3: ='Weight IN Dist'!B15 ->  | B3: =IFERROR(_xlfn.BETA.DIST(A3,'Weight IN Dist'!$B$2,'Weight IN Dist'!$B$3,1,'Weight IN Dist'!$C$10,'Weight IN Dist'!$C$11)-_xlfn.BETA.DIST(A2,'Weight IN Dist'!$B$2,'Weight IN Dist'!$B$3,1,'Weight IN Dist'!$C$10,'Weight IN Dist'!$C$11),0) -> 0 | C3: =B3*$G$2 -> 0 | D3: =IF(B3="",0,C3*A3) ->  | F3: Total Batch Wt IN (kg) | G3: =SUM(D2:D102) -> 
A4: ='Weight IN Dist'!B16 ->  | B4: =IFERROR(_xlfn.BETA.DIST(A4,'Weight IN Dist'!$B$2,'Weight IN Dist'!$B$3,1,'Weight IN Dist'!$C$10,'Weight IN Dist'!$C$11)-_xlfn.BETA.DIST(A3,'Weight IN Dist'!$B$2,'Weight IN Dist'!$B$3,1,'Weight IN Dist'!$C$10,'Weight IN Dist'!$C$11),0) -> 0 | C4: =B4*$G$2 -> 0
A5: ='Weight IN Dist'!B17 ->  | B5: =IFERROR(_xlfn.BETA.DIST(A5,'Weight IN Dist'!$B$2,'Weight IN Dist'!$B$3,1,'Weight IN Dist'!$C$10,'Weight IN Dist'!$C$11)-_xlfn.BETA.DIST(A4,'Weight IN Dist'!$B$2,'Weight IN Dist'!$B$3,1,'Weight IN Dist'!$C$10,'Weight IN Dist'!$C$11),0) -> 0 | C5: 0
A6: ='Weight IN Dist'!B18 ->  | B6: =IFERROR(_xlfn.BETA.DIST(A6,'Weight IN Dist'!$B$2,'Weight IN Dist'!$B$3,1,'Weight IN Dist'!$C$10,'Weight IN Dist'!$C$11)-_xlfn.BETA.DIST(A5,'Weight IN Dist'!$B$2,'Weight IN Dist'!$B$3,1,'Weight IN Dist'!$C$10,'Weight IN Dist'!$C$11),0) -> 0 | C6: 0
A7: ='Weight IN Dist'!B19 ->  | B7: =IFERROR(_xlfn.BETA.DIST(A7,'Weight IN Dist'!$B$2,'Weight IN Dist'!$B$3,1,'Weight IN Dist'!$C$10,'Weight IN Dist'!$C$11)-_xlfn.BETA.DIST(A6,'Weight IN Dist'!$B$2,'Weight IN Dist'!$B$3,1,'Weight IN Dist'!$C$10,'Weight IN Dist'!$C$11),0) -> 0 | C7: 0
A8: ='Weight IN Dist'!B20 ->  | B8: =IFERROR(_xlfn.BETA.DIST(A8,'Weight IN Dist'!$B$2,'Weight IN Dist'!$B$3,1,'Weight IN Dist'!$C$10,'Weight IN Dist'!$C$11)-_xlfn.BETA.DIST(A7,'Weight IN Dist'!$B$2,'Weight IN Dist'!$B$3,1,'Weight IN Dist'!$C$10,'Weight IN Dist'!$C$11),0) -> 0 | C8: 0
A9: ='Weight IN Dist'!B21 ->  | B9: =IFERROR(_xlfn.BETA.DIST(A9,'Weight IN Dist'!$B$2,'Weight IN Dist'!$B$3,1,'Weight IN Dist'!$C$10,'Weight IN Dist'!$C$11)-_xlfn.BETA.DIST(A8,'Weight IN Dist'!$B$2,'Weight IN Dist'!$B$3,1,'Weight IN Dist'!$C$10,'Weight IN Dist'!$C$11),0) -> 0 | C9: 0
A10: ='Weight IN Dist'!B22 ->  | B10: =IFERROR(_xlfn.BETA.DIST(A10,'Weight IN Dist'!$B$2,'Weight IN Dist'!$B$3,1,'Weight IN Dist'!$C$10,'Weight IN Dist'!$C$11)-_xlfn.BETA.DIST(A9,'Weight IN Dist'!$B$2,'Weight IN Dist'!$B$3,1,'Weight IN Dist'!$C$10,'Weight IN Dist'!$C$11),0) -> 0 | C10: 0
A11: ='Weight IN Dist'!B23 ->  | B11: =IFERROR(_xlfn.BETA.DIST(A11,'Weight IN Dist'!$B$2,'Weight IN Dist'!$B$3,1,'Weight IN Dist'!$C$10,'Weight IN Dist'!$C$11)-_xlfn.BETA.DIST(A10,'Weight IN Dist'!$B$2,'Weight IN Dist'!$B$3,1,'Weight IN Dist'!$C$10,'Weight IN Dist'!$C$11),0) -> 0 | C11: 0
A12: ='Weight IN Dist'!B24 ->  | B12: =IFERROR(_xlfn.BETA.DIST(A12,'Weight IN Dist'!$B$2,'Weight IN Dist'!$B$3,1,'Weight IN Dist'!$C$10,'Weight IN Dist'!$C$11)-_xlfn.BETA.DIST(A11,'Weight IN Dist'!$B$2,'Weight IN Dist'!$B$3,1,'Weight IN Dist'!$C$10,'Weight IN Dist'!$C$11),0) -> 0 | C12: 0
A13: ='Weight IN Dist'!B25 ->  | B13: =IFERROR(_xlfn.BETA.DIST(A13,'Weight IN Dist'!$B$2,'Weight IN Dist'!$B$3,1,'Weight IN Dist'!$C$10,'Weight IN Dist'!$C$11)-_xlfn.BETA.DIST(A12,'Weight IN Dist'!$B$2,'Weight IN Dist'!$B$3,1,'Weight IN Dist'!$C$10,'Weight IN Dist'!$C$11),0) -> 0 | C13: 0
A14: ='Weight IN Dist'!B26 ->  | B14: =IFERROR(_xlfn.BETA.DIST(A14,'Weight IN Dist'!$B$2,'Weight IN Dist'!$B$3,1,'Weight IN Dist'!$C$10,'Weight IN Dist'!$C$11)-_xlfn.BETA.DIST(A13,'Weight IN Dist'!$B$2,'Weight IN Dist'!$B$3,1,'Weight IN Dist'!$C$10,'Weight IN Dist'!$C$11),0) -> 0 | C14: 0
A15: ='Weight IN Dist'!B27 ->  | B15: =IFERROR(_xlfn.BETA.DIST(A15,'Weight IN Dist'!$B$2,'Weight IN Dist'!$B$3,1,'Weight IN Dist'!$C$10,'Weight IN Dist'!$C$11)-_xlfn.BETA.DIST(A14,'Weight IN Dist'!$B$2,'Weight IN Dist'!$B$3,1,'Weight IN Dist'!$C$10,'Weight IN Dist'!$C$11),0) -> 0 | C15: 0
A16: ='Weight IN Dist'!B28 ->  | B16: =IFERROR(_xlfn.BETA.DIST(A16,'Weight IN Dist'!$B$2,'Weight IN Dist'!$B$3,1,'Weight IN Dist'!$C$10,'Weight IN Dist'!$C$11)-_xlfn.BETA.DIST(A15,'Weight IN Dist'!$B$2,'Weight IN Dist'!$B$3,1,'Weight IN Dist'!$C$10,'Weight IN Dist'!$C$11),0) -> 0 | C16: 0
A17: ='Weight IN Dist'!B29 ->  | B17: =IFERROR(_xlfn.BETA.DIST(A17,'Weight IN Dist'!$B$2,'Weight IN Dist'!$B$3,1,'Weight IN Dist'!$C$10,'Weight IN Dist'!$C$11)-_xlfn.BETA.DIST(A16,'Weight IN Dist'!$B$2,'Weight IN Dist'!$B$3,1,'Weight IN Dist'!$C$10,'Weight IN Dist'!$C$11),0) -> 0 | C17: 0
A18: ='Weight IN Dist'!B30 ->  | B18: =IFERROR(_xlfn.BETA.DIST(A18,'Weight IN Dist'!$B$2,'Weight IN Dist'!$B$3,1,'Weight IN Dist'!$C$10,'Weight IN Dist'!$C$11)-_xlfn.BETA.DIST(A17,'Weight IN Dist'!$B$2,'Weight IN Dist'!$B$3,1,'Weight IN Dist'!$C$10,'Weight IN Dist'!$C$11),0) -> 0 | C18: 0
A19: ='Weight IN Dist'!B31 ->  | B19: =IFERROR(_xlfn.BETA.DIST(A19,'Weight IN Dist'!$B$2,'Weight IN Dist'!$B$3,1,'Weight IN Dist'!$C$10,'Weight IN Dist'!$C$11)-_xlfn.BETA.DIST(A18,'Weight IN Dist'!$B$2,'Weight IN Dist'!$B$3,1,'Weight IN Dist'!$C$10,'Weight IN Dist'!$C$11),0) -> 0 | C19: 0
A20: ='Weight IN Dist'!B32 ->  | B20: =IFERROR(_xlfn.BETA.DIST(A20,'Weight IN Dist'!$B$2,'Weight IN Dist'!$B$3,1,'Weight IN Dist'!$C$10,'Weight IN Dist'!$C$11)-_xlfn.BETA.DIST(A19,'Weight IN Dist'!$B$2,'Weight IN Dist'!$B$3,1,'Weight IN Dist'!$C$10,'Weight IN Dist'!$C$11),0) -> 0 | C20: 0
A21: ='Weight IN Dist'!B33 ->  | B21: =IFERROR(_xlfn.BETA.DIST(A21,'Weight IN Dist'!$B$2,'Weight IN Dist'!$B$3,1,'Weight IN Dist'!$C$10,'Weight IN Dist'!$C$11)-_xlfn.BETA.DIST(A20,'Weight IN Dist'!$B$2,'Weight IN Dist'!$B$3,1,'Weight IN Dist'!$C$10,'Weight IN Dist'!$C$11),0) -> 0 | C21: 0
A22: ='Weight IN Dist'!B34 ->  | B22: =IFERROR(_xlfn.BETA.DIST(A22,'Weight IN Dist'!$B$2,'Weight IN Dist'!$B$3,1,'Weight IN Dist'!$C$10,'Weight IN Dist'!$C$11)-_xlfn.BETA.DIST(A21,'Weight IN Dist'!$B$2,'Weight IN Dist'!$B$3,1,'Weight IN Dist'!$C$10,'Weight IN Dist'!$C$11),0) -> 0 | C22: 0
A23: ='Weight IN Dist'!B35 ->  | B23: =IFERROR(_xlfn.BETA.DIST(A23,'Weight IN Dist'!$B$2,'Weight IN Dist'!$B$3,1,'Weight IN Dist'!$C$10,'Weight IN Dist'!$C$11)-_xlfn.BETA.DIST(A22,'Weight IN Dist'!$B$2,'Weight IN Dist'!$B$3,1,'Weight IN Dist'!$C$10,'Weight IN Dist'!$C$11),0) -> 0 | C23: 0
A24: ='Weight IN Dist'!B36 ->  | B24: =IFERROR(_xlfn.BETA.DIST(A24,'Weight IN Dist'!$B$2,'Weight IN Dist'!$B$3,1,'Weight IN Dist'!$C$10,'Weight IN Dist'!$C$11)-_xlfn.BETA.DIST(A23,'Weight IN Dist'!$B$2,'Weight IN Dist'!$B$3,1,'Weight IN Dist'!$C$10,'Weight IN Dist'!$C$11),0) -> 0 | C24: 0
A25: ='Weight IN Dist'!B37 ->  | B25: =IFERROR(_xlfn.BETA.DIST(A25,'Weight IN Dist'!$B$2,'Weight IN Dist'!$B$3,1,'Weight IN Dist'!$C$10,'Weight IN Dist'!$C$11)-_xlfn.BETA.DIST(A24,'Weight IN Dist'!$B$2,'Weight IN Dist'!$B$3,1,'Weight IN Dist'!$C$10,'Weight IN Dist'!$C$11),0) -> 0 | C25: 0
A26: ='Weight IN Dist'!B38 ->  | B26: =IFERROR(_xlfn.BETA.DIST(A26,'Weight IN Dist'!$B$2,'Weight IN Dist'!$B$3,1,'Weight IN Dist'!$C$10,'Weight IN Dist'!$C$11)-_xlfn.BETA.DIST(A25,'Weight IN Dist'!$B$2,'Weight IN Dist'!$B$3,1,'Weight IN Dist'!$C$10,'Weight IN Dist'!$C$11),0) -> 0 | C26: 0
A27: ='Weight IN Dist'!B39 ->  | B27: =IFERROR(_xlfn.BETA.DIST(A27,'Weight IN Dist'!$B$2,'Weight IN Dist'!$B$3,1,'Weight IN Dist'!$C$10,'Weight IN Dist'!$C$11)-_xlfn.BETA.DIST(A26,'Weight IN Dist'!$B$2,'Weight IN Dist'!$B$3,1,'Weight IN Dist'!$C$10,'Weight IN Dist'!$C$11),0) -> 0 | C27: 0
A28: ='Weight IN Dist'!B40 ->  | B28: =IFERROR(_xlfn.BETA.DIST(A28,'Weight IN Dist'!$B$2,'Weight IN Dist'!$B$3,1,'Weight IN Dist'!$C$10,'Weight IN Dist'!$C$11)-_xlfn.BETA.DIST(A27,'Weight IN Dist'!$B$2,'Weight IN Dist'!$B$3,1,'Weight IN Dist'!$C$10,'Weight IN Dist'!$C$11),0) -> 0 | C28: 0
A29: ='Weight IN Dist'!B41 ->  | B29: =IFERROR(_xlfn.BETA.DIST(A29,'Weight IN Dist'!$B$2,'Weight IN Dist'!$B$3,1,'Weight IN Dist'!$C$10,'Weight IN Dist'!$C$11)-_xlfn.BETA.DIST(A28,'Weight IN Dist'!$B$2,'Weight IN Dist'!$B$3,1,'Weight IN Dist'!$C$10,'Weight IN Dist'!$C$11),0) -> 0 | C29: 0
A30: ='Weight IN Dist'!B42 ->  | B30: =IFERROR(_xlfn.BETA.DIST(A30,'Weight IN Dist'!$B$2,'Weight IN Dist'!$B$3,1,'Weight IN Dist'!$C$10,'Weight IN Dist'!$C$11)-_xlfn.BETA.DIST(A29,'Weight IN Dist'!$B$2,'Weight IN Dist'!$B$3,1,'Weight IN Dist'!$C$10,'Weight IN Dist'!$C$11),0) -> 0 | C30: 0
A31: ='Weight IN Dist'!B43 ->  | B31: =IFERROR(_xlfn.BETA.DIST(A31,'Weight IN Dist'!$B$2,'Weight IN Dist'!$B$3,1,'Weight IN Dist'!$C$10,'Weight IN Dist'!$C$11)-_xlfn.BETA.DIST(A30,'Weight IN Dist'!$B$2,'Weight IN Dist'!$B$3,1,'Weight IN Dist'!$C$10,'Weight IN Dist'!$C$11),0) -> 0 | C31: 0
A32: ='Weight IN Dist'!B44 ->  | B32: =IFERROR(_xlfn.BETA.DIST(A32,'Weight IN Dist'!$B$2,'Weight IN Dist'!$B$3,1,'Weight IN Dist'!$C$10,'Weight IN Dist'!$C$11)-_xlfn.BETA.DIST(A31,'Weight IN Dist'!$B$2,'Weight IN Dist'!$B$3,1,'Weight IN Dist'!$C$10,'Weight IN Dist'!$C$11),0) -> 0 | C32: 0
A33: ='Weight IN Dist'!B45 ->  | B33: =IFERROR(_xlfn.BETA.DIST(A33,'Weight IN Dist'!$B$2,'Weight IN Dist'!$B$3,1,'Weight IN Dist'!$C$10,'Weight IN Dist'!$C$11)-_xlfn.BETA.DIST(A32,'Weight IN Dist'!$B$2,'Weight IN Dist'!$B$3,1,'Weight IN Dist'!$C$10,'Weight IN Dist'!$C$11),0) -> 0 | C33: 0
A34: ='Weight IN Dist'!B46 ->  | B34: =IFERROR(_xlfn.BETA.DIST(A34,'Weight IN Dist'!$B$2,'Weight IN Dist'!$B$3,1,'Weight IN Dist'!$C$10,'Weight IN Dist'!$C$11)-_xlfn.BETA.DIST(A33,'Weight IN Dist'!$B$2,'Weight IN Dist'!$B$3,1,'Weight IN Dist'!$C$10,'Weight IN Dist'!$C$11),0) -> 0 | C34: 0
A35: ='Weight IN Dist'!B47 ->  | B35: =IFERROR(_xlfn.BETA.DIST(A35,'Weight IN Dist'!$B$2,'Weight IN Dist'!$B$3,1,'Weight IN Dist'!$C$10,'Weight IN Dist'!$C$11)-_xlfn.BETA.DIST(A34,'Weight IN Dist'!$B$2,'Weight IN Dist'!$B$3,1,'Weight IN Dist'!$C$10,'Weight IN Dist'!$C$11),0) -> 0 | C35: 0
A36: ='Weight IN Dist'!B48 ->  | B36: =IFERROR(_xlfn.BETA.DIST(A36,'Weight IN Dist'!$B$2,'Weight IN Dist'!$B$3,1,'Weight IN Dist'!$C$10,'Weight IN Dist'!$C$11)-_xlfn.BETA.DIST(A35,'Weight IN Dist'!$B$2,'Weight IN Dist'!$B$3,1,'Weight IN Dist'!$C$10,'Weight IN Dist'!$C$11),0) -> 0 | C36: 0
A37: ='Weight IN Dist'!B49 ->  | B37: =IFERROR(_xlfn.BETA.DIST(A37,'Weight IN Dist'!$B$2,'Weight IN Dist'!$B$3,1,'Weight IN Dist'!$C$10,'Weight IN Dist'!$C$11)-_xlfn.BETA.DIST(A36,'Weight IN Dist'!$B$2,'Weight IN Dist'!$B$3,1,'Weight IN Dist'!$C$10,'Weight IN Dist'!$C$11),0) -> 0 | C37: 0
A38: ='Weight IN Dist'!B50 ->  | B38: =IFERROR(_xlfn.BETA.DIST(A38,'Weight IN Dist'!$B$2,'Weight IN Dist'!$B$3,1,'Weight IN Dist'!$C$10,'Weight IN Dist'!$C$11)-_xlfn.BETA.DIST(A37,'Weight IN Dist'!$B$2,'Weight IN Dist'!$B$3,1,'Weight IN Dist'!$C$10,'Weight IN Dist'!$C$11),0) -> 0 | C38: 0
A39: ='Weight IN Dist'!B51 ->  | B39: =IFERROR(_xlfn.BETA.DIST(A39,'Weight IN Dist'!$B$2,'Weight IN Dist'!$B$3,1,'Weight IN Dist'!$C$10,'Weight IN Dist'!$C$11)-_xlfn.BETA.DIST(A38,'Weight IN Dist'!$B$2,'Weight IN Dist'!$B$3,1,'Weight IN Dist'!$C$10,'Weight IN Dist'!$C$11),0) -> 0 | C39: 0
A40: ='Weight IN Dist'!B52 ->  | B40: =IFERROR(_xlfn.BETA.DIST(A40,'Weight IN Dist'!$B$2,'Weight IN Dist'!$B$3,1,'Weight IN Dist'!$C$10,'Weight IN Dist'!$C$11)-_xlfn.BETA.DIST(A39,'Weight IN Dist'!$B$2,'Weight IN Dist'!$B$3,1,'Weight IN Dist'!$C$10,'Weight IN Dist'!$C$11),0) -> 0 | C40: 0
A41: ='Weight IN Dist'!B53 ->  | B41: =IFERROR(_xlfn.BETA.DIST(A41,'Weight IN Dist'!$B$2,'Weight IN Dist'!$B$3,1,'Weight IN Dist'!$C$10,'Weight IN Dist'!$C$11)-_xlfn.BETA.DIST(A40,'Weight IN Dist'!$B$2,'Weight IN Dist'!$B$3,1,'Weight IN Dist'!$C$10,'Weight IN Dist'!$C$11),0) -> 0 | C41: 0
A42: ='Weight IN Dist'!B54 ->  | B42: =IFERROR(_xlfn.BETA.DIST(A42,'Weight IN Dist'!$B$2,'Weight IN Dist'!$B$3,1,'Weight IN Dist'!$C$10,'Weight IN Dist'!$C$11)-_xlfn.BETA.DIST(A41,'Weight IN Dist'!$B$2,'Weight IN Dist'!$B$3,1,'Weight IN Dist'!$C$10,'Weight IN Dist'!$C$11),0) -> 0 | C42: 0
A43: ='Weight IN Dist'!B55 ->  | B43: =IFERROR(_xlfn.BETA.DIST(A43,'Weight IN Dist'!$B$2,'Weight IN Dist'!$B$3,1,'Weight IN Dist'!$C$10,'Weight IN Dist'!$C$11)-_xlfn.BETA.DIST(A42,'Weight IN Dist'!$B$2,'Weight IN Dist'!$B$3,1,'Weight IN Dist'!$C$10,'Weight IN Dist'!$C$11),0) -> 0 | C43: 0
A44: ='Weight IN Dist'!B56 ->  | B44: =IFERROR(_xlfn.BETA.DIST(A44,'Weight IN Dist'!$B$2,'Weight IN Dist'!$B$3,1,'Weight IN Dist'!$C$10,'Weight IN Dist'!$C$11)-_xlfn.BETA.DIST(A43,'Weight IN Dist'!$B$2,'Weight IN Dist'!$B$3,1,'Weight IN Dist'!$C$10,'Weight IN Dist'!$C$11),0) -> 0 | C44: 0
A45: ='Weight IN Dist'!B57 ->  | B45: =IFERROR(_xlfn.BETA.DIST(A45,'Weight IN Dist'!$B$2,'Weight IN Dist'!$B$3,1,'Weight IN Dist'!$C$10,'Weight IN Dist'!$C$11)-_xlfn.BETA.DIST(A44,'Weight IN Dist'!$B$2,'Weight IN Dist'!$B$3,1,'Weight IN Dist'!$C$10,'Weight IN Dist'!$C$11),0) -> 0 | C45: 0
A46: ='Weight IN Dist'!B58 ->  | B46: =IFERROR(_xlfn.BETA.DIST(A46,'Weight IN Dist'!$B$2,'Weight IN Dist'!$B$3,1,'Weight IN Dist'!$C$10,'Weight IN Dist'!$C$11)-_xlfn.BETA.DIST(A45,'Weight IN Dist'!$B$2,'Weight IN Dist'!$B$3,1,'Weight IN Dist'!$C$10,'Weight IN Dist'!$C$11),0) -> 0 | C46: 0
A47: ='Weight IN Dist'!B59 ->  | B47: =IFERROR(_xlfn.BETA.DIST(A47,'Weight IN Dist'!$B$2,'Weight IN Dist'!$B$3,1,'Weight IN Dist'!$C$10,'Weight IN Dist'!$C$11)-_xlfn.BETA.DIST(A46,'Weight IN Dist'!$B$2,'Weight IN Dist'!$B$3,1,'Weight IN Dist'!$C$10,'Weight IN Dist'!$C$11),0) -> 0 | C47: 0
A48: ='Weight IN Dist'!B60 ->  | B48: =IFERROR(_xlfn.BETA.DIST(A48,'Weight IN Dist'!$B$2,'Weight IN Dist'!$B$3,1,'Weight IN Dist'!$C$10,'Weight IN Dist'!$C$11)-_xlfn.BETA.DIST(A47,'Weight IN Dist'!$B$2,'Weight IN Dist'!$B$3,1,'Weight IN Dist'!$C$10,'Weight IN Dist'!$C$11),0) -> 0 | C48: 0
A49: ='Weight IN Dist'!B61 ->  | B49: =IFERROR(_xlfn.BETA.DIST(A49,'Weight IN Dist'!$B$2,'Weight IN Dist'!$B$3,1,'Weight IN Dist'!$C$10,'Weight IN Dist'!$C$11)-_xlfn.BETA.DIST(A48,'Weight IN Dist'!$B$2,'Weight IN Dist'!$B$3,1,'Weight IN Dist'!$C$10,'Weight IN Dist'!$C$11),0) -> 0 | C49: 0
A50: ='Weight IN Dist'!B62 ->  | B50: =IFERROR(_xlfn.BETA.DIST(A50,'Weight IN Dist'!$B$2,'Weight IN Dist'!$B$3,1,'Weight IN Dist'!$C$10,'Weight IN Dist'!$C$11)-_xlfn.BETA.DIST(A49,'Weight IN Dist'!$B$2,'Weight IN Dist'!$B$3,1,'Weight IN Dist'!$C$10,'Weight IN Dist'!$C$11),0) -> 0 | C50: 0
A51: ='Weight IN Dist'!B63 ->  | B51: =IFERROR(_xlfn.BETA.DIST(A51,'Weight IN Dist'!$B$2,'Weight IN Dist'!$B$3,1,'Weight IN Dist'!$C$10,'Weight IN Dist'!$C$11)-_xlfn.BETA.DIST(A50,'Weight IN Dist'!$B$2,'Weight IN Dist'!$B$3,1,'Weight IN Dist'!$C$10,'Weight IN Dist'!$C$11),0) -> 0 | C51: 0
A52: ='Weight IN Dist'!B64 ->  | B52: =IFERROR(_xlfn.BETA.DIST(A52,'Weight IN Dist'!$B$2,'Weight IN Dist'!$B$3,1,'Weight IN Dist'!$C$10,'Weight IN Dist'!$C$11)-_xlfn.BETA.DIST(A51,'Weight IN Dist'!$B$2,'Weight IN Dist'!$B$3,1,'Weight IN Dist'!$C$10,'Weight IN Dist'!$C$11),0) -> 0 | C52: 0
A53: ='Weight IN Dist'!B65 ->  | B53: =IFERROR(_xlfn.BETA.DIST(A53,'Weight IN Dist'!$B$2,'Weight IN Dist'!$B$3,1,'Weight IN Dist'!$C$10,'Weight IN Dist'!$C$11)-_xlfn.BETA.DIST(A52,'Weight IN Dist'!$B$2,'Weight IN Dist'!$B$3,1,'Weight IN Dist'!$C$10,'Weight IN Dist'!$C$11),0) -> 0 | C53: 0
A54: ='Weight IN Dist'!B66 ->  | B54: =IFERROR(_xlfn.BETA.DIST(A54,'Weight IN Dist'!$B$2,'Weight IN Dist'!$B$3,1,'Weight IN Dist'!$C$10,'Weight IN Dist'!$C$11)-_xlfn.BETA.DIST(A53,'Weight IN Dist'!$B$2,'Weight IN Dist'!$B$3,1,'Weight IN Dist'!$C$10,'Weight IN Dist'!$C$11),0) -> 0 | C54: 0
A55: ='Weight IN Dist'!B67 ->  | B55: =IFERROR(_xlfn.BETA.DIST(A55,'Weight IN Dist'!$B$2,'Weight IN Dist'!$B$3,1,'Weight IN Dist'!$C$10,'Weight IN Dist'!$C$11)-_xlfn.BETA.DIST(A54,'Weight IN Dist'!$B$2,'Weight IN Dist'!$B$3,1,'Weight IN Dist'!$C$10,'Weight IN Dist'!$C$11),0) -> 0 | C55: 0
A56: ='Weight IN Dist'!B68 ->  | B56: =IFERROR(_xlfn.BETA.DIST(A56,'Weight IN Dist'!$B$2,'Weight IN Dist'!$B$3,1,'Weight IN Dist'!$C$10,'Weight IN Dist'!$C$11)-_xlfn.BETA.DIST(A55,'Weight IN Dist'!$B$2,'Weight IN Dist'!$B$3,1,'Weight IN Dist'!$C$10,'Weight IN Dist'!$C$11),0) -> 0 | C56: 0
A57: ='Weight IN Dist'!B69 ->  | B57: =IFERROR(_xlfn.BETA.DIST(A57,'Weight IN Dist'!$B$2,'Weight IN Dist'!$B$3,1,'Weight IN Dist'!$C$10,'Weight IN Dist'!$C$11)-_xlfn.BETA.DIST(A56,'Weight IN Dist'!$B$2,'Weight IN Dist'!$B$3,1,'Weight IN Dist'!$C$10,'Weight IN Dist'!$C$11),0) -> 0 | C57: 0
A58: ='Weight IN Dist'!B70 ->  | B58: =IFERROR(_xlfn.BETA.DIST(A58,'Weight IN Dist'!$B$2,'Weight IN Dist'!$B$3,1,'Weight IN Dist'!$C$10,'Weight IN Dist'!$C$11)-_xlfn.BETA.DIST(A57,'Weight IN Dist'!$B$2,'Weight IN Dist'!$B$3,1,'Weight IN Dist'!$C$10,'Weight IN Dist'!$C$11),0) -> 0 | C58: 0
A59: ='Weight IN Dist'!B71 ->  | B59: =IFERROR(_xlfn.BETA.DIST(A59,'Weight IN Dist'!$B$2,'Weight IN Dist'!$B$3,1,'Weight IN Dist'!$C$10,'Weight IN Dist'!$C$11)-_xlfn.BETA.DIST(A58,'Weight IN Dist'!$B$2,'Weight IN Dist'!$B$3,1,'Weight IN Dist'!$C$10,'Weight IN Dist'!$C$11),0) -> 0 | C59: 0
A60: ='Weight IN Dist'!B72 ->  | B60: =IFERROR(_xlfn.BETA.DIST(A60,'Weight IN Dist'!$B$2,'Weight IN Dist'!$B$3,1,'Weight IN Dist'!$C$10,'Weight IN Dist'!$C$11)-_xlfn.BETA.DIST(A59,'Weight IN Dist'!$B$2,'Weight IN Dist'!$B$3,1,'Weight IN Dist'!$C$10,'Weight IN Dist'!$C$11),0) -> 0 | C60: 0
A61: ='Weight IN Dist'!B73 ->  | B61: =IFERROR(_xlfn.BETA.DIST(A61,'Weight IN Dist'!$B$2,'Weight IN Dist'!$B$3,1,'Weight IN Dist'!$C$10,'Weight IN Dist'!$C$11)-_xlfn.BETA.DIST(A60,'Weight IN Dist'!$B$2,'Weight IN Dist'!$B$3,1,'Weight IN Dist'!$C$10,'Weight IN Dist'!$C$11),0) -> 0 | C61: 0
A62: ='Weight IN Dist'!B74 ->  | B62: =IFERROR(_xlfn.BETA.DIST(A62,'Weight IN Dist'!$B$2,'Weight IN Dist'!$B$3,1,'Weight IN Dist'!$C$10,'Weight IN Dist'!$C$11)-_xlfn.BETA.DIST(A61,'Weight IN Dist'!$B$2,'Weight IN Dist'!$B$3,1,'Weight IN Dist'!$C$10,'Weight IN Dist'!$C$11),0) -> 0 | C62: 0
A63: ='Weight IN Dist'!B75 ->  | B63: =IFERROR(_xlfn.BETA.DIST(A63,'Weight IN Dist'!$B$2,'Weight IN Dist'!$B$3,1,'Weight IN Dist'!$C$10,'Weight IN Dist'!$C$11)-_xlfn.BETA.DIST(A62,'Weight IN Dist'!$B$2,'Weight IN Dist'!$B$3,1,'Weight IN Dist'!$C$10,'Weight IN Dist'!$C$11),0) -> 0 | C63: 0
A64: ='Weight IN Dist'!B76 ->  | B64: =IFERROR(_xlfn.BETA.DIST(A64,'Weight IN Dist'!$B$2,'Weight IN Dist'!$B$3,1,'Weight IN Dist'!$C$10,'Weight IN Dist'!$C$11)-_xlfn.BETA.DIST(A63,'Weight IN Dist'!$B$2,'Weight IN Dist'!$B$3,1,'Weight IN Dist'!$C$10,'Weight IN Dist'!$C$11),0) -> 0 | C64: 0
A65: ='Weight IN Dist'!B77 ->  | B65: =IFERROR(_xlfn.BETA.DIST(A65,'Weight IN Dist'!$B$2,'Weight IN Dist'!$B$3,1,'Weight IN Dist'!$C$10,'Weight IN Dist'!$C$11)-_xlfn.BETA.DIST(A64,'Weight IN Dist'!$B$2,'Weight IN Dist'!$B$3,1,'Weight IN Dist'!$C$10,'Weight IN Dist'!$C$11),0) -> 0 | C65: 0
A66: ='Weight IN Dist'!B78 ->  | B66: =IFERROR(_xlfn.BETA.DIST(A66,'Weight IN Dist'!$B$2,'Weight IN Dist'!$B$3,1,'Weight IN Dist'!$C$10,'Weight IN Dist'!$C$11)-_xlfn.BETA.DIST(A65,'Weight IN Dist'!$B$2,'Weight IN Dist'!$B$3,1,'Weight IN Dist'!$C$10,'Weight IN Dist'!$C$11),0) -> 0 | C66: 0 | D66: =IF(B66="",0,C66*A66) -> 
A67: ='Weight IN Dist'!B79 ->  | B67: =IFERROR(_xlfn.BETA.DIST(A67,'Weight IN Dist'!$B$2,'Weight IN Dist'!$B$3,1,'Weight IN Dist'!$C$10,'Weight IN Dist'!$C$11)-_xlfn.BETA.DIST(A66,'Weight IN Dist'!$B$2,'Weight IN Dist'!$B$3,1,'Weight IN Dist'!$C$10,'Weight IN Dist'!$C$11),0) -> 0 | C67: 0
A68: ='Weight IN Dist'!B80 ->  | B68: =IFERROR(_xlfn.BETA.DIST(A68,'Weight IN Dist'!$B$2,'Weight IN Dist'!$B$3,1,'Weight IN Dist'!$C$10,'Weight IN Dist'!$C$11)-_xlfn.BETA.DIST(A67,'Weight IN Dist'!$B$2,'Weight IN Dist'!$B$3,1,'Weight IN Dist'!$C$10,'Weight IN Dist'!$C$11),0) -> 0 | C68: =B68*$G$2 -> 0
A69: ='Weight IN Dist'!B81 ->  | B69: =IFERROR(_xlfn.BETA.DIST(A69,'Weight IN Dist'!$B$2,'Weight IN Dist'!$B$3,1,'Weight IN Dist'!$C$10,'Weight IN Dist'!$C$11)-_xlfn.BETA.DIST(A68,'Weight IN Dist'!$B$2,'Weight IN Dist'!$B$3,1,'Weight IN Dist'!$C$10,'Weight IN Dist'!$C$11),0) -> 0 | C69: 0
A70: ='Weight IN Dist'!B82 ->  | B70: =IFERROR(_xlfn.BETA.DIST(A70,'Weight IN Dist'!$B$2,'Weight IN Dist'!$B$3,1,'Weight IN Dist'!$C$10,'Weight IN Dist'!$C$11)-_xlfn.BETA.DIST(A69,'Weight IN Dist'!$B$2,'Weight IN Dist'!$B$3,1,'Weight IN Dist'!$C$10,'Weight IN Dist'!$C$11),0) -> 0 | C70: 0
A71: ='Weight IN Dist'!B83 ->  | B71: =IFERROR(_xlfn.BETA.DIST(A71,'Weight IN Dist'!$B$2,'Weight IN Dist'!$B$3,1,'Weight IN Dist'!$C$10,'Weight IN Dist'!$C$11)-_xlfn.BETA.DIST(A70,'Weight IN Dist'!$B$2,'Weight IN Dist'!$B$3,1,'Weight IN Dist'!$C$10,'Weight IN Dist'!$C$11),0) -> 0 | C71: 0
A72: ='Weight IN Dist'!B84 ->  | B72: =IFERROR(_xlfn.BETA.DIST(A72,'Weight IN Dist'!$B$2,'Weight IN Dist'!$B$3,1,'Weight IN Dist'!$C$10,'Weight IN Dist'!$C$11)-_xlfn.BETA.DIST(A71,'Weight IN Dist'!$B$2,'Weight IN Dist'!$B$3,1,'Weight IN Dist'!$C$10,'Weight IN Dist'!$C$11),0) -> 0 | C72: 0
A73: ='Weight IN Dist'!B85 ->  | B73: =IFERROR(_xlfn.BETA.DIST(A73,'Weight IN Dist'!$B$2,'Weight IN Dist'!$B$3,1,'Weight IN Dist'!$C$10,'Weight IN Dist'!$C$11)-_xlfn.BETA.DIST(A72,'Weight IN Dist'!$B$2,'Weight IN Dist'!$B$3,1,'Weight IN Dist'!$C$10,'Weight IN Dist'!$C$11),0) -> 0 | C73: 0
A74: ='Weight IN Dist'!B86 ->  | B74: =IFERROR(_xlfn.BETA.DIST(A74,'Weight IN Dist'!$B$2,'Weight IN Dist'!$B$3,1,'Weight IN Dist'!$C$10,'Weight IN Dist'!$C$11)-_xlfn.BETA.DIST(A73,'Weight IN Dist'!$B$2,'Weight IN Dist'!$B$3,1,'Weight IN Dist'!$C$10,'Weight IN Dist'!$C$11),0) -> 0 | C74: 0
A75: ='Weight IN Dist'!B87 ->  | B75: =IFERROR(_xlfn.BETA.DIST(A75,'Weight IN Dist'!$B$2,'Weight IN Dist'!$B$3,1,'Weight IN Dist'!$C$10,'Weight IN Dist'!$C$11)-_xlfn.BETA.DIST(A74,'Weight IN Dist'!$B$2,'Weight IN Dist'!$B$3,1,'Weight IN Dist'!$C$10,'Weight IN Dist'!$C$11),0) -> 0 | C75: 0
A76: ='Weight IN Dist'!B88 ->  | B76: =IFERROR(_xlfn.BETA.DIST(A76,'Weight IN Dist'!$B$2,'Weight IN Dist'!$B$3,1,'Weight IN Dist'!$C$10,'Weight IN Dist'!$C$11)-_xlfn.BETA.DIST(A75,'Weight IN Dist'!$B$2,'Weight IN Dist'!$B$3,1,'Weight IN Dist'!$C$10,'Weight IN Dist'!$C$11),0) -> 0 | C76: 0
A77: ='Weight IN Dist'!B89 ->  | B77: =IFERROR(_xlfn.BETA.DIST(A77,'Weight IN Dist'!$B$2,'Weight IN Dist'!$B$3,1,'Weight IN Dist'!$C$10,'Weight IN Dist'!$C$11)-_xlfn.BETA.DIST(A76,'Weight IN Dist'!$B$2,'Weight IN Dist'!$B$3,1,'Weight IN Dist'!$C$10,'Weight IN Dist'!$C$11),0) -> 0 | C77: 0
A78: ='Weight IN Dist'!B90 ->  | B78: =IFERROR(_xlfn.BETA.DIST(A78,'Weight IN Dist'!$B$2,'Weight IN Dist'!$B$3,1,'Weight IN Dist'!$C$10,'Weight IN Dist'!$C$11)-_xlfn.BETA.DIST(A77,'Weight IN Dist'!$B$2,'Weight IN Dist'!$B$3,1,'Weight IN Dist'!$C$10,'Weight IN Dist'!$C$11),0) -> 0 | C78: 0
A79: ='Weight IN Dist'!B91 ->  | B79: =IFERROR(_xlfn.BETA.DIST(A79,'Weight IN Dist'!$B$2,'Weight IN Dist'!$B$3,1,'Weight IN Dist'!$C$10,'Weight IN Dist'!$C$11)-_xlfn.BETA.DIST(A78,'Weight IN Dist'!$B$2,'Weight IN Dist'!$B$3,1,'Weight IN Dist'!$C$10,'Weight IN Dist'!$C$11),0) -> 0 | C79: 0
A80: ='Weight IN Dist'!B92 ->  | B80: =IFERROR(_xlfn.BETA.DIST(A80,'Weight IN Dist'!$B$2,'Weight IN Dist'!$B$3,1,'Weight IN Dist'!$C$10,'Weight IN Dist'!$C$11)-_xlfn.BETA.DIST(A79,'Weight IN Dist'!$B$2,'Weight IN Dist'!$B$3,1,'Weight IN Dist'!$C$10,'Weight IN Dist'!$C$11),0) -> 0 | C80: 0
A81: ='Weight IN Dist'!B93 ->  | B81: =IFERROR(_xlfn.BETA.DIST(A81,'Weight IN Dist'!$B$2,'Weight IN Dist'!$B$3,1,'Weight IN Dist'!$C$10,'Weight IN Dist'!$C$11)-_xlfn.BETA.DIST(A80,'Weight IN Dist'!$B$2,'Weight IN Dist'!$B$3,1,'Weight IN Dist'!$C$10,'Weight IN Dist'!$C$11),0) -> 0 | C81: 0
A82: ='Weight IN Dist'!B94 ->  | B82: =IFERROR(_xlfn.BETA.DIST(A82,'Weight IN Dist'!$B$2,'Weight IN Dist'!$B$3,1,'Weight IN Dist'!$C$10,'Weight IN Dist'!$C$11)-_xlfn.BETA.DIST(A81,'Weight IN Dist'!$B$2,'Weight IN Dist'!$B$3,1,'Weight IN Dist'!$C$10,'Weight IN Dist'!$C$11),0) -> 0 | C82: 0
A83: ='Weight IN Dist'!B95 ->  | B83: =IFERROR(_xlfn.BETA.DIST(A83,'Weight IN Dist'!$B$2,'Weight IN Dist'!$B$3,1,'Weight IN Dist'!$C$10,'Weight IN Dist'!$C$11)-_xlfn.BETA.DIST(A82,'Weight IN Dist'!$B$2,'Weight IN Dist'!$B$3,1,'Weight IN Dist'!$C$10,'Weight IN Dist'!$C$11),0) -> 0 | C83: 0
A84: ='Weight IN Dist'!B96 ->  | B84: =IFERROR(_xlfn.BETA.DIST(A84,'Weight IN Dist'!$B$2,'Weight IN Dist'!$B$3,1,'Weight IN Dist'!$C$10,'Weight IN Dist'!$C$11)-_xlfn.BETA.DIST(A83,'Weight IN Dist'!$B$2,'Weight IN Dist'!$B$3,1,'Weight IN Dist'!$C$10,'Weight IN Dist'!$C$11),0) -> 0 | C84: 0
A85: ='Weight IN Dist'!B97 ->  | B85: =IFERROR(_xlfn.BETA.DIST(A85,'Weight IN Dist'!$B$2,'Weight IN Dist'!$B$3,1,'Weight IN Dist'!$C$10,'Weight IN Dist'!$C$11)-_xlfn.BETA.DIST(A84,'Weight IN Dist'!$B$2,'Weight IN Dist'!$B$3,1,'Weight IN Dist'!$C$10,'Weight IN Dist'!$C$11),0) -> 0 | C85: 0
A86: ='Weight IN Dist'!B98 ->  | B86: =IFERROR(_xlfn.BETA.DIST(A86,'Weight IN Dist'!$B$2,'Weight IN Dist'!$B$3,1,'Weight IN Dist'!$C$10,'Weight IN Dist'!$C$11)-_xlfn.BETA.DIST(A85,'Weight IN Dist'!$B$2,'Weight IN Dist'!$B$3,1,'Weight IN Dist'!$C$10,'Weight IN Dist'!$C$11),0) -> 0 | C86: 0
A87: ='Weight IN Dist'!B99 ->  | B87: =IFERROR(_xlfn.BETA.DIST(A87,'Weight IN Dist'!$B$2,'Weight IN Dist'!$B$3,1,'Weight IN Dist'!$C$10,'Weight IN Dist'!$C$11)-_xlfn.BETA.DIST(A86,'Weight IN Dist'!$B$2,'Weight IN Dist'!$B$3,1,'Weight IN Dist'!$C$10,'Weight IN Dist'!$C$11),0) -> 0 | C87: 0
A88: ='Weight IN Dist'!B100 ->  | B88: =IFERROR(_xlfn.BETA.DIST(A88,'Weight IN Dist'!$B$2,'Weight IN Dist'!$B$3,1,'Weight IN Dist'!$C$10,'Weight IN Dist'!$C$11)-_xlfn.BETA.DIST(A87,'Weight IN Dist'!$B$2,'Weight IN Dist'!$B$3,1,'Weight IN Dist'!$C$10,'Weight IN Dist'!$C$11),0) -> 0 | C88: 0
A89: ='Weight IN Dist'!B101 ->  | B89: =IFERROR(_xlfn.BETA.DIST(A89,'Weight IN Dist'!$B$2,'Weight IN Dist'!$B$3,1,'Weight IN Dist'!$C$10,'Weight IN Dist'!$C$11)-_xlfn.BETA.DIST(A88,'Weight IN Dist'!$B$2,'Weight IN Dist'!$B$3,1,'Weight IN Dist'!$C$10,'Weight IN Dist'!$C$11),0) -> 0 | C89: 0
A90: ='Weight IN Dist'!B102 ->  | B90: =IFERROR(_xlfn.BETA.DIST(A90,'Weight IN Dist'!$B$2,'Weight IN Dist'!$B$3,1,'Weight IN Dist'!$C$10,'Weight IN Dist'!$C$11)-_xlfn.BETA.DIST(A89,'Weight IN Dist'!$B$2,'Weight IN Dist'!$B$3,1,'Weight IN Dist'!$C$10,'Weight IN Dist'!$C$11),0) -> 0 | C90: 0
A91: ='Weight IN Dist'!B103 ->  | B91: =IFERROR(_xlfn.BETA.DIST(A91,'Weight IN Dist'!$B$2,'Weight IN Dist'!$B$3,1,'Weight IN Dist'!$C$10,'Weight IN Dist'!$C$11)-_xlfn.BETA.DIST(A90,'Weight IN Dist'!$B$2,'Weight IN Dist'!$B$3,1,'Weight IN Dist'!$C$10,'Weight IN Dist'!$C$11),0) -> 0 | C91: 0
A92: ='Weight IN Dist'!B104 ->  | B92: =IFERROR(_xlfn.BETA.DIST(A92,'Weight IN Dist'!$B$2,'Weight IN Dist'!$B$3,1,'Weight IN Dist'!$C$10,'Weight IN Dist'!$C$11)-_xlfn.BETA.DIST(A91,'Weight IN Dist'!$B$2,'Weight IN Dist'!$B$3,1,'Weight IN Dist'!$C$10,'Weight IN Dist'!$C$11),0) -> 0 | C92: 0
A93: ='Weight IN Dist'!B105 ->  | B93: =IFERROR(_xlfn.BETA.DIST(A93,'Weight IN Dist'!$B$2,'Weight IN Dist'!$B$3,1,'Weight IN Dist'!$C$10,'Weight IN Dist'!$C$11)-_xlfn.BETA.DIST(A92,'Weight IN Dist'!$B$2,'Weight IN Dist'!$B$3,1,'Weight IN Dist'!$C$10,'Weight IN Dist'!$C$11),0) -> 0 | C93: 0
A94: ='Weight IN Dist'!B106 ->  | B94: =IFERROR(_xlfn.BETA.DIST(A94,'Weight IN Dist'!$B$2,'Weight IN Dist'!$B$3,1,'Weight IN Dist'!$C$10,'Weight IN Dist'!$C$11)-_xlfn.BETA.DIST(A93,'Weight IN Dist'!$B$2,'Weight IN Dist'!$B$3,1,'Weight IN Dist'!$C$10,'Weight IN Dist'!$C$11),0) -> 0 | C94: 0
A95: ='Weight IN Dist'!B107 ->  | B95: =IFERROR(_xlfn.BETA.DIST(A95,'Weight IN Dist'!$B$2,'Weight IN Dist'!$B$3,1,'Weight IN Dist'!$C$10,'Weight IN Dist'!$C$11)-_xlfn.BETA.DIST(A94,'Weight IN Dist'!$B$2,'Weight IN Dist'!$B$3,1,'Weight IN Dist'!$C$10,'Weight IN Dist'!$C$11),0) -> 0 | C95: 0
A96: ='Weight IN Dist'!B108 ->  | B96: =IFERROR(_xlfn.BETA.DIST(A96,'Weight IN Dist'!$B$2,'Weight IN Dist'!$B$3,1,'Weight IN Dist'!$C$10,'Weight IN Dist'!$C$11)-_xlfn.BETA.DIST(A95,'Weight IN Dist'!$B$2,'Weight IN Dist'!$B$3,1,'Weight IN Dist'!$C$10,'Weight IN Dist'!$C$11),0) -> 0 | C96: 0
A97: ='Weight IN Dist'!B109 ->  | B97: =IFERROR(_xlfn.BETA.DIST(A97,'Weight IN Dist'!$B$2,'Weight IN Dist'!$B$3,1,'Weight IN Dist'!$C$10,'Weight IN Dist'!$C$11)-_xlfn.BETA.DIST(A96,'Weight IN Dist'!$B$2,'Weight IN Dist'!$B$3,1,'Weight IN Dist'!$C$10,'Weight IN Dist'!$C$11),0) -> 0 | C97: 0
A98: ='Weight IN Dist'!B110 ->  | B98: =IFERROR(_xlfn.BETA.DIST(A98,'Weight IN Dist'!$B$2,'Weight IN Dist'!$B$3,1,'Weight IN Dist'!$C$10,'Weight IN Dist'!$C$11)-_xlfn.BETA.DIST(A97,'Weight IN Dist'!$B$2,'Weight IN Dist'!$B$3,1,'Weight IN Dist'!$C$10,'Weight IN Dist'!$C$11),0) -> 0 | C98: 0
A99: ='Weight IN Dist'!B111 ->  | B99: =IFERROR(_xlfn.BETA.DIST(A99,'Weight IN Dist'!$B$2,'Weight IN Dist'!$B$3,1,'Weight IN Dist'!$C$10,'Weight IN Dist'!$C$11)-_xlfn.BETA.DIST(A98,'Weight IN Dist'!$B$2,'Weight IN Dist'!$B$3,1,'Weight IN Dist'!$C$10,'Weight IN Dist'!$C$11),0) -> 0 | C99: 0
A100: ='Weight IN Dist'!B112 ->  | B100: =IFERROR(_xlfn.BETA.DIST(A100,'Weight IN Dist'!$B$2,'Weight IN Dist'!$B$3,1,'Weight IN Dist'!$C$10,'Weight IN Dist'!$C$11)-_xlfn.BETA.DIST(A99,'Weight IN Dist'!$B$2,'Weight IN Dist'!$B$3,1,'Weight IN Dist'!$C$10,'Weight IN Dist'!$C$11),0) -> 0 | C100: 0
A101: ='Weight IN Dist'!B113 ->  | B101: =IFERROR(_xlfn.BETA.DIST(A101,'Weight IN Dist'!$B$2,'Weight IN Dist'!$B$3,1,'Weight IN Dist'!$C$10,'Weight IN Dist'!$C$11)-_xlfn.BETA.DIST(A100,'Weight IN Dist'!$B$2,'Weight IN Dist'!$B$3,1,'Weight IN Dist'!$C$10,'Weight IN Dist'!$C$11),0) -> 0 | C101: 0
A102: ='Weight IN Dist'!B114 ->  | B102: =IFERROR(_xlfn.BETA.DIST(A102,'Weight IN Dist'!$B$2,'Weight IN Dist'!$B$3,1,'Weight IN Dist'!$C$10,'Weight IN Dist'!$C$11)-_xlfn.BETA.DIST(A101,'Weight IN Dist'!$B$2,'Weight IN Dist'!$B$3,1,'Weight IN Dist'!$C$10,'Weight IN Dist'!$C$11),0) -> 0 | C102: 0
B104: =SUM(B2:B103) -> 0 | C104: =SUM(C2:C103) ->  | D104: =SUM(D2:D103) -> 

Sheet Calculations (hidden)
B2: ='Rearing Herd Calculator'!C20 -> Feed costs and feeding plan
G3: Feed allowance | O3: Feed Costs
C4: Cost (£/t) | E4: DAYS | G4: kg/pig | H4: kg/batch | J4: %Mortality | L4: Deaths | M4: Batch | O4: £/pig | P4: £/batch
B6: Starter diet | C6: ='Rearing Herd Calculator'!D25 -> 500 | E6: ='Rearing Herd Calculator'!F25 -> 7 | G6: ='Rearing Herd Calculator'!H25 -> 3 | H6: =G6*M6 -> 1498.5 | J6: ='Rearing Herd Calculator'!L25 -> 0.1 | L6: =C18*(J6/100) -> 0.5 | M6: =C18-L6 -> 499.5 | O6: =(C6/1000)*G6 -> 1.5 | P6: =(C6/1000)*H6 -> 749.25
B8: Link diet | C8: ='Rearing Herd Calculator'!D27 -> 300 | E8: ='Rearing Herd Calculator'!F27 -> 10 | G8: ='Rearing Herd Calculator'!H27 -> 8 | H8: =G8*M8 -> 3984.012 | J8: ='Rearing Herd Calculator'!L27 -> 0.3 | L8: =M6*(J8/100) -> 1.4985 | M8: =M6-L8 -> 498.0015 | O8: =(C8/1000)*G8 -> 2.4 | P8: =(C8/1000)*H8 -> 1195.2036
B10: Rearer I | C10: ='Rearing Herd Calculator'!D29 -> 250 | E10: ='Rearing Herd Calculator'!F29 -> 15 | G10: ='Rearing Herd Calculator'!H29 -> 18 | H10: =G10*M10 -> 8919.206865 | J10: ='Rearing Herd Calculator'!L29 -> 0.5 | L10: =M8*(J10/100) -> 2.4900075 | M10: =M8-L10 -> 495.5114925 | O10: =(C10/1000)*G10 -> 4.5 | P10: =(C10/1000)*H10 -> 2229.801716
B12: Rearer II | C12: ='Rearing Herd Calculator'!D31 -> 225 | E12: ='Rearing Herd Calculator'!F31 -> 31 | G12: ='Rearing Herd Calculator'!H31 -> 45 | H12: =G12*M12 -> 22231.12311 | J12: ='Rearing Herd Calculator'!L31 -> 0.3 | L12: =M10*(J12/100) -> 1.486534478 | M12: =M10-L12 -> 494.024958 | O12: =(C12/1000)*G12 -> 10.125 | P12: =(C12/1000)*H12 -> 5002.0027
B14: OVERALL | C14: =(P14/H14)*1000 -> 250.4926596 | E14: ='Rearing Herd Calculator'!F33 -> 63 | G14: ='Rearing Herd Calculator'!H33 -> 74 | H14: =H6+H8+H10+H12 -> 36632.84198 | J14: =(L14/C18)*100 -> 1.195008396 | L14: =L6+L8+L10+L12 -> 5.975041978 | O14: =P14/M12 -> 18.57448266 | P14: =P6+P8+P10+P12 -> 9176.258016
B18: Batch IN | C18: ='Rearing Herd Calculator'!F14 -> 500

Sheet Ave Performance 2015 (hidden)
B1: Unit | C1: Value | F1: Values in Growth Model
A3: Weaning Age | B3: d | C3: 26.38 | F3: Age (day) | G3: Wt (kg)
A4: Weanng Weight | B4: kg | C4: 7.17 | F4: 26 | G4: =(F4/C3)*C4 -> 7.06671721
F5: =F4+((G5-G4)/(C9/1000)) -> 90.65071877 | G5: 37
A6: Rearing Herd | F6: =F5+((G6-G5)/(C17/1000)) -> 177.3092255 | G6: 107.8
A7: Weight at Start | B7: kg | C7: 7.57 | F7: P2 | G7: 11.3
A8: End Weight | B8: kg | C8: 36.85
A9: Daily Dain | B9: g | C9: 463
A10: FCR | C10: 1.89
A11: Total Feed per pig | B11: kg | C11: =(C8-C7)*C10 -> 55.3392
A12: Days | B12: d | C12: =(C8-C7)/(C9/1000) -> 63.23974082
A14: Finishing Herd
A15: Weight at Start | B15: kg | C15: 37.2
A16: End Weight | B16: kg | C16: 107.8
A17: Daily Dain | B17: g | C17: 817
A18: FCR | C18: 2.69
A19: Total Feed per pig | B19: kg | C19: =(C16-C15)*C18 -> 189.914
A20: Days | B20: d | C20: =(C16-C15)/(C17/1000) -> 86.41370869
A21: Carcase Weight | B21: kg | C21: 80.6
A22: Backfat thickness P2 | B22: mm | C22: 11.3
